Cogmind - Beta 16 @@@ ROGUE MODE // 2025.11.22 @ 05:58:23 Player: goodsprings Result: Self-destructed Performance ------------- Evolutions (1) 500 Regions Visited (2) 400 Robots Destroyed (11) 55 Value Destroyed (281) 281 Prototype IDs (0) 0 Alien Tech Used (0) 0 Bonus (0) 0 TOTAL SCORE: 1236 Bonus ------- None Cogmind --------- Core Integrity 370/400 Matter 282/300 Energy 240/240 System Corruption 0% Temperature Cool (0) Movement Rolling (90) Location -9/Materials Parts ------- > --- POWER (1) -------- Nuclear Core > --- PROPULSION (3) --- Wheel Compact Wheel > --- UTILITY (3) ------ Heat Sink Small Storage Unit Weapon Shielding > --- WEAPON (2) ------- Medium Laser Heavy Assault Rifle > --- INVENTORY (8) ---- Nuclear Core Light Treads Light Treads Light Treads Medium Armor Plating Grenade Launcher Grenade Launcher Mining Laser Peak State ------------ > --- POWER ------------ Nuclear Core > --- PROPULSION ------- Wheel Wheel Compact Wheel > --- UTILITY ---------- Heat Sink Small Storage Unit Weapon Shielding > --- WEAPON ----------- Medium Laser Heavy Assault Rifle > --- INVENTORY -------- Nuclear Core Light Treads Light Treads Light Treads Medium Armor Plating Grenade Launcher Grenade Launcher Mining Laser [Rating: 13] Favorites ----------- Power Ion Engine Engine Ion Engine Power Core Nuclear Core Propulsion Wheel Wheel Wheel Utility Small Storage Unit Device Seismic Detector Storage Small Storage Unit Protection Weapon Shielding Weapon Light Assault Rifle Energy Gun EM Pulse Gun Ballistic Gun Light Assault Rifle Special Weapon Mining Laser Build | -11 -10 -9 ------- Run | Yrd Mat Mat Slots Evolved 2 | . . 2 Power . | . . . Propulsion 1 | . . 1 Utility 1 | . . 1 Weapon . | . . . Parts Attached 19 | 8 5 6 Power 4 | 1 2 1 Engine 3 | 1 2 . Core 1 | . . 1 Reactor . | . . . Propulsion 3 | 3 . . Treads . | . . . Leg . | . . . Wheel 3 | 3 . . Hover . | . . . Flight . | . . . Utility 5 | 2 . 3 Device 3 | 1 . 2 Storage 1 | 1 . . Processor . | . . . Hackware . | . . . Protection 1 | . . 1 Artifact . | . . . Weapon 7 | 2 3 2 Energy Gun 2 | 1 . 1 Energy Cannon . | . . . Ballistic Gun 4 | 1 2 1 Ballistic Cannon . | . . . Launcher . | . . . Special Weapon 1 | . 1 . Impact Weapon . | . . . Slashing Weapon . | . . . Piercing Weapon . | . . . Special Melee Weapon . | . . . Unidentified Prototypes . | . . . Parts Lost 5 | . 3 2 Power 1 | . 1 . Propulsion 1 | . . 1 Utility 1 | . 1 . Weapon 2 | . 1 1 Highest Loss Streak 2 | . 2 1 To Critical Strikes . | . . . Average Backups 7 | 4 7 7 Power . | . . . Propulsion 2 | 2 3 2 Utility . | . . 1 Weapon 3 | . 3 3 Tool/Special . | . . . Unused Backups 10 | 1 2 7 Power 1 | . . 1 Propulsion 6 | 1 2 3 Utility 1 | . . 1 Weapon 2 | . . 2 Tool/Special . | . . . Average Slot Usage (%) 93 | . 93 95 Engine 9 | . 13 2 Core 2 | . . 8 Wheel 29 | . 28 32 Device 9 | . 9 10 Storage 12 | . 14 11 Protection 2 | . . 8 Energy Gun 4 | . 4 3 Ballistic Gun 19 | . 20 18 Special Weapon 1 | . 2 . Peak Build Rating 13 | 7 7 13 Average Rating 7 | 5 6 11 On Entrance 4 | . 7 6 Avg Prop Armor Cover (%) . | . . . Naked Turns . | . . . Heaviest Build 19 | 14 15 19 Greatest Support 36 | 26 20 36 Greatest Overweight (x) 2 | 2 . . Average Overweight (x) . | . . . Largest Inventory Capacity 8 | 8 8 8 Average Capacity 7 | 7 8 8 Most Carried 8 | 8 8 8 Average Carried 7 | 4 7 7 Final Capacity 8 | 8 8 8 Final Carried 8 | 8 8 8 Class Distribution -------------------- 81% | Mutant 18% | Scavenger-Mutant Dominant Class ---------------- Mutant | -10/Materials Mutant | -9/Materials Resources | -11 -10 -9 ----------- Run | Yrd Mat Mat Matter Collected 487 | 285 146 56 Remotely . | . . . Salvage Created 434 | 109 269 56 Parts 28 | 6 17 5 Haulers Intercepted . | . . . Recyclers Shooed . | . . . Parts Field Recycled . | . . . Retrieved Matter . | . . . Parts Self-Destructed . | . . . Prevented . | . . . Parts Restored . | . . . Kills | -11 -10 -9 ------- Run | Yrd Mat Mat Combat Hostiles Destroyed 9 | . 8 1 Guns 8 | . 7 1 AOE 1 | . 1 . Classes Destroyed 5 | 2 2 1 Tunneler 1 | 1 . . Recycler 1 | 1 . . Swarmer 3 | . 3 . Grunt 5 | . 5 . Sentry 1 | . . 1 Best Kill Streak 4 | 2 4 1 Combat Bots Only 4 | . 4 1 Max Kills in Single Turn 1 | 1 1 1 Gunslinging . | . . . Exploded 1 | . 1 . Melee . | . . . Uniques/NPCs Destroyed . | . . . Combat | -11 -10 -9 -------- Run | Yrd Mat Mat Hostile Shots Fired 56 | . 45 11 Missed 8 | . 7 1 Hits 48 | . 38 10 Projectile 48 | . 38 10 Critical Strikes 1 | . 1 . Damage Taken 643 | . 495 148 Core 111 | . 81 30 Absorbed by Shields . | . . . Redirected to Shielding 22 | . . 22 Core Remaining (%) 83 | 100 67 . Volleys Fired 41 | 5 31 5 Largest 2 | 2 2 2 Hottest 100 | 60 100 70 Shots Fired 68 | 10 49 9 Gun 61 | 10 42 9 Cannon . | . . . Launcher . | . . . Special 7 | . 7 . Kinetic 50 | 5 37 8 Thermal 8 | . 7 1 Explosive . | . . . Electromagnetic 10 | 5 5 . Robot Hit Streak 9 | 1 9 5 Robot Miss Streak 3 | 2 3 2 Penetration Max . | . . . Secondary Targets 1 | . 1 . Max Gunslinging Chain 1 | . 1 . Shots Hit Robots 35 | 4 25 6 Core Hits 18 | 2 13 3 Critical Kills 1 | . 1 . Critical Parts Destroyed . | . . . Critical Strikes 1 | . 1 . Destroy 1 | . 1 . Melee Attacks . | . . . Impact . | . . . Slashing . | . . . Piercing . | . . . Sneak Attacks . | . . . Combat Hostiles . | . . . Follow-up Attacks . | . . . Damage Inflicted 451 | 53 337 61 Guns 393 | 53 279 61 Cannons . | . . . Explosions 58 | . 58 . Melee . | . . . Ramming . | . . . Kinetic 307 | . 258 49 Thermal 70 | . 58 12 Explosive . | . . . Electromagnetic 74 | 53 21 . Impact . | . . . Slashing . | . . . Piercing . | . . . Highest Corruption . | . . . Average Corruption . | . . . Corruption Purged . | . . . Corruption Blocked . | . . . Overload Shots . | . . . Overflow Damage . | . . . Projectiles . | . . . Explosions . | . . . Melee . | . . . Knockbacks . | . . . Impact . | . . . Kinetic . | . . . Secondary . | . . . Self-Inflicted Damage 40 | . 40 . Shots 1 | . 1 . Rammed . | . . . Targets Rammed . | . . . Kicked . | . . . Crushed . | . . . Highest Temperature 60 | 20 60 8 Average Temperature 17 | 15 17 6 Received Heat Transfer 228 | . 177 51 Siege Activations . | . . . Martial Activations . | . . . Shielding Activations . | . . . Robots Disrupted . | . . . Combat Hostiles . | . . . Robots Corrupted . | . . . Combat Hostiles . | . . . Parts Fried . | . . . Impact Corruptions . | . . . Robots Melted . | . . . Combat Hostiles . | . . . Parts Melted . | . . . Heat Transferred 187 | . 150 37 Parts Sabotaged . | . . . Parts Stolen . | . . . Parts Stripped . | . . . Power Chain Reactions 1 | . 1 . Alert | -11 -10 -9 ------- Run | Yrd Mat Mat Maximum Alert Level . | . . . Low Security (%) 100 | 100 100 100 Level 1 . | . . . Level 2 . | . . . Level 3 . | . . . Level 4 . | . . . Level 5 . | . . . High Security . | . . . Max Security . | . . . Peak Influence 143 | 5 143 47 Initial 47 | . . 47 Average 44 | 1 67 25 Influence Increases 316 | 10 261 45 Destroy 0b10 Robot/C 180 | . 160 20 Destroy 0b10 Robot/NC 10 | 10 . . Destroy Leader 40 | . 30 10 Disable Machine 15 | . 15 . Destroy Structure 11 | . 11 . Lose Combat Pursuer 60 | . 45 15 Influence Decreases 311 | 10 148 153 Entered New Map 66 | . . 66 Time Decay 198 | 10 118 70 Lost Part 47 | . 30 17 Squads Dispatched 1 | . 1 . Investigation . | . . . Extermination . | . . . Reinforcement 1 | . 1 . Assault . | . . . Garrison . | . . . Intercept . | . . . Searches Triggered . | . . . Construction Impeded . | . . . Haulers Reinforced . | . . . Active Scanning Responses . | . . . Cargo Convoy Interrupts . | . . . Stealth | -11 -10 -9 --------- Run | Yrd Mat Mat Distress Signals . | . . . Communications Jammed . | . . . Distress Signals . | . . . Times Spotted 15 | . 11 4 Peak Tracking Total 5 | . 5 3 Tactical Retreats 3 | . 2 1 Traps | -11 -10 -9 ------- Run | Yrd Mat Mat Traps Triggered 2 | . 2 . Indirectly . | . . . Trap Hack Attempts . | . . . Triggered . | . . . Disarmed . | . . . Reprogrammed . | . . . Reused . | . . . Traps Extracted . | . . . Installed . | . . . Triggered . | . . . Machines | -11 -10 -9 ---------- Run | Yrd Mat Mat Machines Disabled 1 | . 1 . Max in Single Turn 1 | . 1 . Machines Repaired . | . . . Machines Dismantled . | . . . Machines Sabotaged . | . . . Overloaded Fab Kills . | . . . Hacking | -11 -10 -9 --------- Run | Yrd Mat Mat Machines Accessed 2 | . 1 1 Terminals 2 | . 1 1 Fabricators . | . . . Repair Stations . | . . . Recycling Units . | . . . Scanalyzers . | . . . Garrison Access . | . . . Total Hacks 4 | . 3 1 Successful 1 | . . 1 Failed 3 | . 3 . Catastrophic 1 | . 1 . Database Lockouts . | . . . Manual . | . . . Terminals 4 | . 3 1 Fabricators . | . . . Repair Stations . | . . . Recycling Units . | . . . Scanalyzers . | . . . Garrison Access . | . . . Terminal Hacks 1 | . . 1 Alert Level 1 | . . 1 Fabricator Hacks . | . . . Repair Station Hacks . | . . . Recycling Unit Hacks . | . . . Scanalyzer . | . . . Garrison Access Hacks . | . . . Unauthorized Hacks . | . . . Terminals . | . . . Fabricators . | . . . Repair Stations . | . . . Recycling Units . | . . . Scanalyzers . | . . . Garrison Access . | . . . Data Cores Recovered . | . . . Used . | . . . Hacking Detections 1 | . 1 . Full Trace Events . | . . . Feedback Events . | . . . Feedback Blocked . | . . . Robot Schematics Acquired . | . . . Robots Built . | . . . Authchips . | . . . Time . | . . . Total Robot Build Rating . | . . . Part Schematics Acquired . | . . . Parts Built . | . . . Authchips . | . . . Time . | . . . Total Part Build Rating . | . . . Part Studies Acquired . | . . . Parts Repaired . | . . . Time . | . . . Parts Recycled . | . . . Recycled Matter . | . . . Retrieved Matter . | . . . Retrieved Components . | . . . Parts Scanalyzed . | . . . Part Schematics Acquired . | . . . Parts Damaged . | . . . Bothacking | -11 -10 -9 ------------ Run | Yrd Mat Mat Used RIF Installer . | . . . Robots Hacked . | . . . Non-combat . | . . . Combat . | . . . Robot Hacks Applied . | . . . Relay Couplers Released . | . . . Fabnet Peak Effective % . | . . . Robots Rewired . | . . . Allies Hacked . | . . . Hacks Repelled . | . . . Allies | -11 -10 -9 -------- Run | Yrd Mat Mat Total Allies . | . . . Largest Group . | . . . Highest-Rated Group . | . . . Highest-Rated Ally . | . . . Total Orders . | . . . Ally Attacks . | . . . Total Damage . | . . . Kills . | . . . Allies Corrupted . | . . . Allies Melted . | . . . Intel | -11 -10 -9 ------- Run | Yrd Mat Mat Active Infowar (turns) 191 | 10 181 . Seismic 191 | 10 181 . Robot Analysis Total . | . . . Derelict Logs Recovered . | . . . Drone Launches . | . . . Drone Recoveries . | . . . Exploration | -11 -10 -9 ------------- Run | Yrd Mat Mat Turns Passed 494 | 84 270 140 Spaces Moved 358 | 53 194 111 Core 4 | 4 . . Treads . | . . . Legs . | . . . Wheels 354 | 49 194 111 Hover . | . . . Flight . | . . . Fastest Speed 50 | 50 80 86 Average Speed 83 | 91 80 86 Slowest Speed 150 | 150 80 90 Overloaded Moves . | . . . Propulsion Burnouts . | . . . Robots Hopped . | . . . Potential Cave-ins . | . . . Cave-ins Triggered . | . . . Exploration Rate (%) 20 | 5 45 11 Regions Visited 2 Branch Regions . Pre-discovered Areas . | . . . Known Exits Taken . | . . . Unknown Exits Taken 2 | 1 1 . Scrap Searched . | . . . Spaces Dug 7 | . 7 . Terrain Destroyed 12 | . 12 . Melee . | . . . Projectile 7 | . 7 . AOE 5 | . 5 . Terrain Rammed . | . . . Walls Destroyed . | . . . Machines Disabled . | . . . Actions | -11 -10 -9 --------- Run | Yrd Mat Mat Total 472 | 76 248 148 Wait 27 | . 9 18 Move 356 | 52 193 111 Hop . | . . . Pick Up 16 | 9 3 4 Fast Attach 8 | 7 1 . Attach 5 | . 1 4 Detach . | . . . Swap 10 | 1 6 3 Drop 9 | 2 4 3 Fire 41 | 5 31 5 Melee . | . . . Ram . | . . . Kick . | . . . Crush . | . . . Escape Stasis . | . . . Rewire . | . . . Trap . | . . . Miscellaneous . | . . . Route ------- -11/Scrapyard -10/Materials (discovered 2 exits: *Mat / [*Min]) -9/Materials History --------- Turn | Location | Event 24 | -11/Scrapyard | Discovered new exit (range 15) 85 | -11/Scrapyard | Entered Materials 275 | -10/Materials | Discovered new exit (range 10) 275 | -10/Materials | Discovered new exit (range 7) 355 | -10/Materials | Entered another Materials area 355 | -9/Materials | Evolved 2 slots: Propulsion x1, Utility x1 495 | -9/Materials | Self-destructed Last Messages --------------- 00366_ Acquired Med. Armor Plating. 00368_ Connecting with Terminal... 00368_ Current location identified: Materials >>Alert(Check) Current Alert Level: Low Security 00384_ Dropped Lgt. Ion Engine. 00388_ Acquired Nuclear Core. 00400_ Connecting with Terminal... 00444_ Assault Rifle destroyed. 00448_ Y-45 Defender destroyed. 00451_ Acquired 56 matter. 00453_ Acquired Lgt. Treads. 00455_ Dropped Lgt. Assault Rifle. 00458_ Dropped Heat Sink. 00483_ C-30 ARC bursts open, deploying its payload. 00483_ L-31 Rogue unfolds itself. 00483_ G-34 Mercenary unfolds itself. 00483_ Wheel destroyed. 00487_ K-01 Serf collects debris. Map ----- +----------------------------------------------------+ | ?????????????????# "T" """ # # """ "??????????? | | ?????????????????# """ # # """"""??????????? | | ?????????????????# """ + + """""??????????? | | ?????????????????# ! """ # # ??????? | | ?????????????????# # # #?????? | | ?????????????????# # #? #?????? | | ?????????????????########### #############?????? | | ???????????????????????#!! # #???????? | | ???????????????????????#!! # #???????? | | ???????????????????????#** # "" #???????? | | ???????????????????????# * *#[ "" #???????? | | ???????????????????????#!! [+ """ T" #???????? | | ???????????????????????#!! !# """ "" #???????? | | ???????????????????????##### # """ "" #???????? | | ???????????????????????????# # #???????? | | ???????????????######??????# ###########???????? | | ???????????????# ####### ############??????? | | ???????????????# ?????? | | ???????????????# ?????? | | ???????????????# ?????? | | ???????????????# ########+#############??????? | | ???????????????## #???# #??????????????? | | ????????????????# #???# #??????????????? | | ????????????????# #???# t u #??????????????? | | ????????????????# #???# #??????????????? | | ????????????????# #####@ #??????????????? | | ????????????????# + + ?????????? | | ????????????????# ##### #??????????????? | | ????????????????# #???#[ #??????????????? | | ????????????????# #???###########??????????????? | | ????????????????# #????????????????????????????? | | ????????????????# #????????????????????????????? | | ????????????????# #????????????????????????????? | | ????????????????# #????????????????????????????? | | ????????????????# #????????????????????????????? | | ????????????????# #????????????????????????????? | | ???????????????? ????????????????????????????? | | ???????????????#### ????????????????????????????? | | ??????????????????# ???????????????????????????? | | ??????????????????# ???????????????????????????? | | ??????????????????? "#??????????????????????????? | | ??????????????????? "%#??????????????????????????? | | ??????????????????? "#??????????????????????????? | | ??????????????????? #??????????????????????????? | | ??????????????????? #??????????????????????????? | | ??????????????????? #??????????????????????????? | | ??????????????????? #??????????????????????????? | | ???????????????????? ????????????????????????????? | | ?????????????????????????????????????????????????? | | ?????????????????????????????????????????????????? | +----------------------------------------------------+ Best States ------------- Heat Dissipation 38 Energy Generation 14 Energy Capacity 250 Matter Stores 300 Matter Capacity 300 Sight Range 16 Terrain Scan Density 10 Weapon Shielding 33 Evasion (%) 44 Item Schematics ----------------- None Robot Schematics ------------------ None Fabricated ------------ Nothing Repaired ---------- Nothing Studied --------- None Alien Tech Used ----------------- None Achievements -------------- None Challenges ------------ None Game ------ Seed PlexusSupercompositeShifter Manual? 0 Play Time 00:07:58 Cumulative 32.0 hours Start 2025.11.22 @ 03:13:31 End 2025.11.22 @ 05:58:23 Sessions 3 Manual Loads 0 Difficulty Rogue Special Mode None Game No. 44 Rogue 42 Adventurer 2 Explorer 0 Win Type - Total 0 Types 0/0/0/0/0/0/0/0/0/0 Lore% 11 Gallery% 25 Achievement% 18 Wizard Run 0 Options --------- Layout 1 ASCII 0 Keyboard 0 Movement Mouse Keybinds 0 Fullscreen 1 Font 32/Terminus Map View 50x35 Zoom Use 0% Tactical HUD 1 Map Filters NONE Filters NONE Steam 1 RUN: 170be866-6f35-40f5-8142-c2db17b0b686